Cogmind - Beta 17 @@@ ROGUE MODE // 2026.07.12 @ 21:05:22 Player: Artackni Result: Core destroyed Performance ------------- Evolutions (6) 3000 Regions Visited (18) 3600 Robots Destroyed (193) 965 Value Destroyed (6398) 6398 Prototype IDs (58) 1160 Alien Tech Used (1) 200 Bonus (21586) 21586 TOTAL SCORE: 36909 Bonus ------- High Alert Combat Kills 522 Follower Combat Kills 1948 Prayed to X0-1V1 5000 Major X0-1V1 Interference 12050 Delivered SUBCON Basin 2000 Met Imprinter 300 Was Imprinted 300 Met Zhirov 300 Friendly Fire -834 Cogmind --------- Core Integrity 0/1300 Matter 150/150 Energy 298/1500 System Corruption 25% Temperature Cool (0) Movement Core (50) Location -4/Extension Parts ------- > --- POWER (2) -------- (None) > --- PROPULSION (6) --- (None) > --- UTILITY (8) ------ Enhanced Optical Array Advanced Melee Analysis Suite Improved System Shield Tech Extrapolator > --- WEAPON (4) ------- (None) > --- INVENTORY (5) ---- High-capacity Storage Unit Particle Accelerator Nanoactuators Authchip [Weapon] Molecular Scythe Peak State ------------ > --- POWER ------------ Light Antimatter Reactor > --- PROPULSION ------- Improved Gravmag System Cooled Aerolev Unit Cooled Gravmag System Combat Gravmag System Improved Gyrokinetic Inverter Improved Gyrokinetic Inverter > --- UTILITY ---------- High-capacity Storage Unit Enhanced Optical Array Advanced Melee Analysis Suite Particle Accelerator Nanoactuators System Shield Improved System Shield Tech Extrapolator X0-1V1's Piety Tracker > --- WEAPON ----------- Zionite Phaser-M Improved Remote Datajack Plasma Sword > --- INVENTORY -------- Graviton Reactor Gyrokinetic Inverter Improved Antigrav System Improved Cooling System Coolant Injector Seismic Detector Nanoactuators Improved Transmission Jammer Makeshift ECM Suite Zionite Weapon Casing Improved Medium Armor Plating Advanced Focal Shield Thermal Shield Advanced EM Shield Authchip [Weapon] Transdimensional Reconstructor Hypervelocity Mass Driver Tiamat Missile Launcher CPS Tube [Rating: 131] Favorites ----------- Power F-cell Engine Engine F-cell Engine Power Core Neutrino Core Reactor Light Antimatter Reactor Propulsion Flexi-carbon Leg Treads Light Treads Leg Flexi-carbon Leg Wheel Wheel Hover Unit Improved Gyrokinetic Inverter Flight Unit Cooled Nuclear Pulse Thruster Utility X0-1V1's Piety Tracker Device X0-1V1's Piety Tracker Storage Huge Storage Unit Processor Enhanced Optical Array Hackware Improved Hacking Suite Protection Improved Medium Armor Plating Weapon Phase Cannon Energy Gun Heavy Particle Gun Energy Cannon Phase Cannon Ballistic Gun Assault Rifle Ballistic Cannon Battle Cannon Launcher Tiamat Missile Launcher Special Weapon Improved Remote Datajack Impact Weapon Makeshift Hammer Slashing Weapon Makeshift Sword Build | -11 -10 -10 -9 -9 -6 -6 -6 -6 -5 -5 -5 -5 -5 -4 -4 -4 -4 -4 ------- Run | Yrd Mat Sub Rec Scr Fac Low Low Zio Pro Fac Upp Upp Zhi Pro Fac Was Fac Ext Slots Evolved 12 | . . . . . 8 . . . . 2 . . . . 2 . . . Power . | . . . . . . . . . . . . . . . . . . . Propulsion 5 | . . . . . 3 . . . . 1 . . . . 1 . . . Utility 7 | . . . . . 5 . . . . 1 . . . . 1 . . . Weapon . | . . . . . . . . . . . . . . . . . . . Parts Attached 176 | 9 4 29 5 3 32 . 3 2 . 25 6 . 6 3 28 1 8 12 Power 21 | 1 1 6 . 1 3 . . . . 3 . . 1 . 2 . 1 2 Engine 12 | 1 1 6 . 1 3 . . . . . . . . . . . . . Core 5 | . . . . . . . . . . 3 . . . . 1 . . 1 Reactor 4 | . . . . . . . . . . . . . 1 . 1 . 1 1 Propulsion 51 | 4 . 7 1 1 11 . 1 . . 9 1 . 2 1 11 . 1 1 Treads 4 | 2 . 2 . . . . . . . . . . . . . . . . Leg 20 | . . 1 . . 7 . 1 . . 9 1 . . 1 . . . . Wheel 12 | 2 . 4 1 1 4 . . . . . . . . . . . . . Hover 13 | . . . . . . . . . . . . . . . 11 . 1 1 Flight 2 | . . . . . . . . . . . . . 2 . . . . . Utility 58 | 2 2 4 1 . 10 . 2 . . 7 3 . 2 1 11 1 5 7 Device 34 | 1 1 4 1 . 7 . 2 . . 5 2 . 1 . 4 1 2 3 Storage 4 | 1 1 . . . 1 . . . . . . . . . . . 1 . Processor 6 | . . . . . . . . . . 1 . . . . 4 . . 1 Hackware 6 | . . . . . 1 . . . . . . . . . 2 . 2 1 Protection 8 | . . . . . 1 . . . . 1 1 . 1 1 1 . . 2 Artifact . | . . . . . . . . . . . . . . . . . . . Weapon 46 | 2 1 12 3 1 8 . . 2 . 6 2 . 1 1 4 . 1 2 Energy Gun 8 | . . . . . 2 . . . . 3 1 . . . 1 . . 1 Energy Cannon 7 | . . 1 . . 4 . . . . 1 1 . . . . . . . Ballistic Gun 5 | 2 . 1 2 . . . . . . . . . . . . . . . Ballistic Cannon 12 | . . 6 1 1 1 . . 1 . . . . 1 . . . . 1 Launcher 4 | . 1 1 . . . . . . . 1 . . . 1 . . . . Special Weapon 6 | . . 1 . . 1 . . 1 . 1 . . . . 1 . 1 . Impact Weapon 1 | . . 1 . . . . . . . . . . . . . . . . Slashing Weapon 3 | . . 1 . . . . . . . . . . . . 2 . . . Piercing Weapon . | . . . . . . . . . . . . . . . . . . . Special Melee Weapon . | . . . . . . . . . . . . . . . . . . . Unidentified Prototypes 18 | . 1 1 . . 2 . . 1 . 4 . . 4 . 4 1 . . Corrupted Parts 1 | . . . . . . . . . . 1 . . . . . . . . System Corruption 3 | . . . . . . . . . . 3 . . . . . . . . Parts Lost 78 | . 1 15 2 . 8 . . . . 12 4 3 . 9 2 . 3 19 Power 12 | . 1 3 1 . 1 . . . . 2 . . . . 1 . 1 2 Propulsion 30 | . . 6 . . 2 . . . . 5 1 2 . 4 . . 2 8 Utility 19 | . . 2 . . 2 . . . . 5 1 . . 2 . . . 7 Weapon 17 | . . 4 1 . 3 . . . . . 2 1 . 3 1 . . 2 Highest Loss Streak 12 | . 1 4 1 . 4 . . . . 3 3 1 . 3 1 . 1 12 To Critical Strikes 3 | . . 2 . . . . . . . 1 . . . . . . . . Average Backups 16 | 3 6 14 7 17 22 19 19 20 20 19 17 18 20 19 19 20 19 17 Power . | . . . . . . 1 1 1 1 . . . . . . 1 1 1 Propulsion 1 | 1 2 1 . 4 2 2 2 3 3 1 . . . . 1 2 1 1 Utility 6 | . 1 3 3 6 7 8 8 8 8 10 10 12 13 13 13 13 13 10 Weapon 5 | . 2 7 3 5 9 6 5 5 6 5 4 3 4 3 1 2 1 1 Tool/Special . | . . . . . . . . . . . . . . . . . . . Unused Backups 52 | . . 15 . . 7 3 2 2 1 5 . . . . 5 1 3 8 Power 2 | . . . . . . . . . . 1 . . . . 1 . . . Propulsion 4 | . . 3 . . . . . . . 1 . . . . . . . . Utility 25 | . . 6 . . 3 . 1 1 1 . . . . . 4 1 2 6 Weapon 18 | . . 6 . . 4 3 1 1 . 2 . . . . . . 1 . Tool/Special 3 | . . . . . . . . . . 1 . . . . . . . 2 Average Slot Usage (%) 93 | . 98 97 71 86 96 100 100 100 100 98 95 92 88 88 81 94 93 80 Engine 5 | . 12 9 . 5 5 6 6 6 6 2 . . . . . 4 2 . Core 1 | . . 3 . . . . . . . 2 5 5 5 5 2 . . . Treads 4 | . 28 6 . . . . . . . . . . . . . . . . Leg 11 | . . 1 12 . 11 31 31 31 31 32 32 30 22 20 1 . . . Wheel 7 | . . 13 11 24 19 . . . . . . . . . . . . . Hover 3 | . . . . . . . . . . . . . . . 27 35 35 27 Flight 1 | . . 4 . . . . . . . . . . 4 7 1 . . . Device 17 | . 14 13 4 12 28 31 31 31 31 23 22 22 21 18 16 15 15 9 Storage 9 | . 14 13 12 12 6 6 6 6 6 5 5 5 5 5 5 5 5 4 Processor 2 | . . . . . . . . . . 4 5 5 5 5 9 15 15 15 Hackware 2 | . . . . . 5 6 6 6 6 5 5 5 2 . 1 . 1 9 Protection 1 | . . . . . . . . . . 2 1 1 2 7 3 5 5 2 Energy Gun 6 | . . 3 24 25 6 6 6 6 6 8 9 5 5 1 . . . . Energy Cannon 4 | . . 5 . . 9 12 12 11 12 6 6 5 5 1 . . . . Ballistic Gun 4 | . 24 4 4 6 . . . . . . . . . . . . . . Ballistic Cannon 2 | . . 8 . . 1 . . . . . . . 3 4 . . . . Slashing Weapon 2 | . . 5 . . . . . . . . . . . . 4 5 5 4 Peak Build Rating 131 | 7 19 71 59 35 83 82 83 85 84 106 104 104 115 115 127 130 126 131 Average Rating 61 | 5 6 33 32 31 67 82 82 83 84 97 101 99 101 103 108 120 120 103 On Entrance 73 | . 7 19 59 36 35 82 82 83 84 84 88 104 86 115 79 118 121 123 Avg Prop Armor Cover (%) 7 | . . 12 7 . 5 . . . . 2 3 2 2 1 4 . . 7 Naked Turns . | . . . . . . . . . . . . . . . . . . . Heaviest Build 124 | 13 91 102 95 98 124 78 78 78 78 85 80 82 94 94 90 75 75 76 Greatest Support 111 | 40 40 60 30 20 94 94 96 96 96 111 98 98 73 98 80 75 80 80 Greatest Overweight (x) 30 | . 2 30 9 4 2 . . . . 1 1 1 1 3 9 . . 1 Average Overweight (x) 1 | . . 4 7 4 1 . . . . . . . . . . . . . Largest Inventory Capacity 25 | 8 25 25 25 25 25 20 20 20 20 20 20 20 20 20 20 20 20 20 Average Capacity 21 | 7 9 25 25 25 23 20 20 20 20 20 20 20 20 20 20 20 20 18 Most Carried 25 | 5 9 25 25 25 25 20 20 20 20 20 19 20 20 20 20 20 20 20 Average Carried 18 | 3 6 20 15 18 22 19 19 19 19 19 17 18 19 19 19 19 19 17 Final Capacity 25 | 8 25 25 25 25 20 20 20 20 20 20 20 20 20 20 20 20 20 5 Final Carried 25 | 5 9 25 15 25 20 20 20 20 20 20 17 20 20 18 20 20 20 5 Transmogrified Parts 25 | . . 20 5 . . . . . . . . . . . . . . . Integrity Recovered 234 | . . 153 81 . . . . . . . . . . . . . . . Class Distribution -------------------- 52% | Mutant 20% | Scavenger-Gunner 6% | Scavenger-Skirmisher 5% | Gunner 4% | Scavenger-Tank Dominant Class ---------------- Mutant | -10/Materials Mutant | -10/Subcaves Mutant | -9/Recycling Gunner | -9/Scraptown Scavenger-Gunner | -6/Factory Scavenger-Gunner | -6/Lower Caves Scavenger-Gunner | -6/Lower Caves Scavenger-Gunner | -6/Zion Scavenger-Gunner | -5/Proximity Caves Scavenger-Tank | -5/Factory Scavenger-Skirmisher | -5/Upper Caves Scavenger-Skirmisher | -5/Upper Caves Skirmisher | -5/Zhirov Mutant | -4/Proximity Caves Commander-Mutant | -4/Factory Sprinter | -4/Waste Mutant | -4/Factory Hacker-Mutant | -4/Extension Resources | -11 -10 -10 -9 -9 -6 -6 -6 -6 -5 -5 -5 -5 -5 -4 -4 -4 -4 -4 ----------- Run | Yrd Mat Sub Rec Scr Fac Low Low Zio Pro Fac Upp Upp Zhi Pro Fac Was Fac Ext Matter Collected 8190 | 314 551 1886 139 10 533 24 358 125 41 920 53 338 90 210 1390 5 787 416 Remotely . | . . . . . . . . . . . . . . . . . . . Salvage Created 8239 | 51 416 1049 952 . 1009 . 279 . . 1403 158 244 224 391 693 . 710 660 Parts 403 | 6 37 99 38 . 36 . 7 . . 63 4 10 3 25 12 . 36 27 Haulers Intercepted 3 | . 2 . . . 1 . . . . . . . . . . . . . Recyclers Shooed 10 | . 1 . 4 . 2 . . . . 2 . . . . 1 . . . Parts Field Recycled . | . . . . . . . . . . . . . . . . . . . Retrieved Matter . | . . . . . . . . . . . . . . . . . . . Parts Self-Destructed 106 | . . 60 . . . 1 7 . 2 . 4 7 3 22 . . . . Prevented 4 | . . . . . . 4 . . . . . . . . . . . . Parts Restored . | . . . . . . . . . . . . . . . . . . . Kills | -11 -10 -10 -9 -9 -6 -6 -6 -6 -5 -5 -5 -5 -5 -4 -4 -4 -4 -4 ------- Run | Yrd Mat Sub Rec Scr Fac Low Low Zio Pro Fac Upp Upp Zhi Pro Fac Was Fac Ext Combat Hostiles Destroyed 143 | . 15 43 8 . 13 . 5 . . 21 4 9 . 13 . . 6 6 Melee 7 | . . . . . . . . . . . . . . . . . 6 1 Guns 46 | . 12 12 7 . 1 . 1 . . 12 1 . . . . . . . Cannons 61 | . . 25 . . 7 . 4 . . 8 3 2 . 7 . . . 5 AOE 24 | . 3 6 1 . 1 . . . . . . 7 . 6 . . . . Classes Destroyed 18 | 1 4 4 2 . 3 . . . . 1 . 1 . . . . . 2 Worker 9 | . 2 . . . . . . . . . . . . . 2 . 5 . Builder 7 | . . . 1 . 1 . . . . 1 . . . . 1 . 1 2 Tunneler 3 | 3 . . . . . . . . . . . . . . . . . . Hauler 3 | . 2 . . . 1 . . . . . . . . . . . . . Recycler 16 | . . . 8 . 1 . . . . 1 . . . . 5 . 1 . Operator 1 | . . . . . 1 . . . . . . . . . . . . . Turret 2 | . . 2 . . . . . . . . . . . . . . . . Watcher 3 | . . . . . . . . . . 1 . . . . . . 2 . Swarmer 53 | . 12 25 . . . . 1 . . 5 . 5 . 4 . . 1 . Grunt 42 | . 3 3 6 . 8 . 3 . . 3 . 4 . 3 . . 3 6 Sentry 9 | . . 1 2 . 2 . 1 . . 2 . . . . . . 1 . Hunter 10 | . . . . . 1 . . . . 5 . . . 2 . . 1 1 Programmer 16 | . . . . . 2 . . . . 6 4 . . 4 . . . . Artisan 1 | . . 1 . . . . . . . . . . . . . . . . Subdweller 16 | . . 16 . . . . . . . . . . . . . . . . Z-Courier 1 | . . . . . . . . . . 1 . . . . . . . . Decomposer 1 | . . . . . . . . . . . . 1 . . . . . . Samaritan 1 | . . . . . . . . . . . . 1 . . . . . . Thug 1 | . . . . . . . . . . . . . . . . . . 1 Butcher 1 | . . . . . . . . . . . . . . . . . . 1 Martyr 1 | . . . . . . . . . . . . . . . . . . 1 Best Kill Streak 5 | 2 3 5 5 . 5 . 3 . . 4 3 5 . 4 2 . 4 5 Combat Bots Only 5 | . 3 4 3 . 3 . 3 . . 4 3 5 . 4 . . 3 4 Max Kills in Single Turn 3 | 1 2 2 1 . 1 . 2 . . 3 1 3 . 3 1 . 1 1 Gunslinging . | . . . . . . . . . . . . . . . . . . . Exploded 3 | . 2 2 1 . 1 . . . . . . 3 . 3 . . . . Melee 1 | . . . . . . . . . . . . . . . . . 1 1 Uniques/NPCs Destroyed . | . . . . . . . . . . . . . . . . . . . Combat | -11 -10 -10 -9 -9 -6 -6 -6 -6 -5 -5 -5 -5 -5 -4 -4 -4 -4 -4 -------- Run | Yrd Mat Sub Rec Scr Fac Low Low Zio Pro Fac Upp Upp Zhi Pro Fac Was Fac Ext Hostile Shots Fired 1128 | . 71 225 45 . 124 11 36 . . 150 42 57 . 101 10 . 27 229 Missed 402 | . 21 76 14 . 49 3 18 . . 55 11 23 . 37 3 . 9 83 Hits 726 | . 50 149 31 . 75 8 18 . . 95 31 34 . 64 7 . 18 146 Projectile 726 | . 50 149 31 . 75 8 18 . . 95 31 34 . 64 7 . 18 146 AOE 6 | . . 5 . . . . . . . . . . . 1 . . . . Critical Strikes 26 | . . 4 2 . 1 1 . . . 7 . . . 4 1 . . 6 Part Disruptions 3 | . . . . . . . . . . 3 . . . . . . . . Damage Taken 12284 | . 465 2011 401 . 1146 182 236 . . 1998 630 597 . 1276 157 . 335 2850 Core 2426 | . 73 400 67 . 78 . 57 . . 102 98 20 . 205 . . 18 1308 Absorbed by Shields . | . . . . . . . . . . . . . . . . . . . Redirected to Shielding 205 | . . . . . . . . . . . . . . 156 . . . 49 Ignored by Resistances 119 | . . 49 . . 31 . . . . . . . . 39 . . . . Regen/Repaired (Parts) 222 | . . . . . . . . 130 . . . . . . . 92 . . Core Remaining (%) 81 | 100 . . . 78 . . . . 86 . . . . 63 . . . . Volleys Fired 436 | 10 51 129 32 . 43 1 11 . . 57 12 16 5 28 2 . 1 38 Largest 3 | 2 2 2 3 . 3 3 3 . . 3 3 2 2 3 1 . 1 1 Hottest 270 | 40 40 130 165 . 229 229 229 . . 270 270 166 166 217 51 . 7 73 Shots Fired 863 | 20 102 204 79 . 120 3 32 . 1 148 32 28 10 45 2 . 1 36 Gun 429 | 20 98 57 77 . 42 1 10 . 1 81 13 13 5 8 . . . 3 Cannon 392 | . . 138 . . 74 2 22 . . 67 19 11 5 24 1 . . 29 Launcher 32 | . 4 9 2 . 3 . . . . . . 4 . 10 . . . . Special 10 | . . . . . 1 . . . . . . . . 3 1 . 1 4 Kinetic 336 | 20 98 128 18 . 15 . . . . 11 . . . 16 1 . . 29 Thermal 457 | . . 47 56 . 99 3 32 . 1 137 32 24 10 16 . . . . Explosive 32 | . 4 6 2 . 3 . . . . . . 4 . 13 . . . . Electromagnetic 29 | . . 23 3 . 3 . . . . . . . . . . . . . Phasic 3 | . . . . . . . . . . . . . . . . . . 3 Robot Hit Streak 20 | 9 7 20 8 . 11 3 13 . 5 18 9 10 5 6 1 . 2 7 Robot Miss Streak 9 | 1 5 6 3 . 3 . 9 . . 4 3 4 1 3 1 . . 3 Penetration Max 2 | . . . . . . . . . . . . . . . . . . 2 Secondary Targets 2 | . 1 . 1 . . . . . . . . . . . . . . . Max Gunslinging Chain 1 | . 1 . 1 . . . . . . . . . . . . . . . Shots Hit Robots 551 | 15 56 100 47 . 73 3 16 . 1 94 23 17 7 30 10 1 29 29 Core Hits 285 | 4 22 56 19 . 29 . 7 . 1 58 9 19 2 21 4 . 14 20 Critical Kills 18 | . . 1 . . 1 . . . . 6 . . . 3 . . . 7 Critical Parts Destroyed 14 | . 1 1 . . . . . . . . . . . 3 . . . 9 Critical Strikes 49 | . 1 3 6 . 3 . . . 1 6 . 1 . 7 . . 3 18 Burn 10 | . . . 6 . 2 . . . 1 . . 1 . . . . . . Meltdown 2 | . . . . . 1 . . . . 1 . . . . . . . . Destroy 30 | . 1 2 . . . . . . . 5 . . . 6 . . . 16 Blast 1 | . . 1 . . . . . . . . . . . . . . . . Sever 6 | . . . . . . . . . . . . . . 1 . . 3 2 Melee Attacks 112 | . . 45 . . . . . . . . . . . . 11 1 45 10 Impact . | . . . . . . . . . . . . . . . . . . . Slashing 112 | . . 45 . . . . . . . . . . . . 11 1 45 10 Piercing . | . . . . . . . . . . . . . . . . . . . Sneak Attacks 22 | . . . . . . . . . . . . . . . 9 . 9 4 Combat Hostiles . | . . . . . . . . . . . . . . . . . . . Follow-up Attacks . | . . . . . . . . . . . . . . . . . . . Damage Inflicted 18978 | 172 843 2626 1097 . 2404 81 489 . 20 3218 961 1359 228 1842 773 58 1783 1024 Guns 5967 | 172 717 415 927 . 721 19 150 . 20 1894 542 217 89 84 . . . . Cannons 6181 | . . 1528 . . 1465 62 339 . . 1324 419 152 139 345 . . . 408 Explosions 3480 | . 126 683 170 . 218 . . . . . . 990 . 1293 . . . . Melee 3208 | . . . . . . . . . . . . . . . 768 58 1783 599 Ramming 22 | . . . . . . . . . . . . . . . 5 . . 17 Kinetic 3324 | 172 717 1191 166 . 212 . . . . 313 . . . 145 . . . 408 Thermal 9162 | . . 941 761 . 2123 81 489 . 20 2905 961 369 228 284 . . . . Explosive 2986 | . 126 364 170 . 43 . . . . . . 990 . 1293 . . . . Electromagnetic 156 | . . 130 . . 26 . . . . . . . . . . . . . Impact . | . . . . . . . . . . . . . . . . . . . Slashing 3328 | . . . . . . . . . . . . . . 120 768 58 1783 599 Piercing . | . . . . . . . . . . . . . . . . . . . Highest Corruption 30 | . 4 30 . . 4 . . . . 9 17 17 . 3 19 . . 25 Average Corruption 9 | . 2 11 . . 2 . . . . 5 15 17 . 1 19 . . 19 Corruption Purged . | . . . . . . . . . . . . . . . . . . . Corruption Blocked . | . . . . . . . . . . . . . . . . . . . Effects 268 | . 27 115 . . 2 . . . . 35 17 23 . 4 23 . . 22 Message Errors 70 | . 9 21 . . 1 . . . . 12 6 7 . 1 6 . . 7 Matter Fused 74 | . 7 33 . . . . . . . 13 4 7 . 2 3 . . 5 Heat Flow Errors 28 | . 5 10 . . . . . . . 4 1 . . 1 2 . . 5 Energy Discharges 25 | . . 14 . . 1 . . . . 2 . . . . 8 . . . Parts Rejected 6 | . . 3 . . . . . . . . 1 2 . . . . . . Parts Fused 6 | . . 2 . . . . . . . . . 1 . . 3 . . . Data Loss (minor) 28 | . 3 17 . . . . . . . 3 2 2 . . . . . 1 Data Loss (major) 7 | . . 4 . . . . . . . . 1 1 . . 1 . . . Misfires 8 | . 3 4 . . . . . . . . . 1 . . . . . . Alerts 4 | . . 3 . . . . . . . 1 . . . . . . . . Misdirections 3 | . . . . . . . . . . . . 1 . . . . . 2 Weapon Failures 9 | . . 4 . . . . . . . . 2 1 . . . . . 2 Overload Shots . | . . . . . . . . . . . . . . . . . . . Overflow Damage 1117 | . . 28 7 . 80 . 15 . . 34 87 10 27 101 307 . 421 . Projectiles 252 | . . . . . 50 . 15 . . 34 87 10 27 29 . . . . Explosions 137 | . . 28 7 . 30 . . . . . . . . 72 . . . . Melee 728 | . . . . . . . . . . . . . . . 307 . 421 . Knockbacks 13 | . . 7 . . 3 . . . . 1 . . . 1 . . . 1 Impact . | . . . . . . . . . . . . . . . . . . . Kinetic 13 | . . 7 . . 3 . . . . 1 . . . 1 . . . 1 Secondary . | . . . . . . . . . . . . . . . . . . . Self-Inflicted Damage 266 | . 35 70 35 . 85 . . . . . . . . 33 . . . 8 Shots 8 | . 2 2 2 . 1 . . . . . . . . 1 . . . . Rammed 6 | . . . . . . . . . . . . . . . . . . 6 Targets Rammed 8 | . . . . . . . . . . . . . . . 2 . . 6 Kicked 2 | . . . . . . . . . . . . . . . 2 . . . Crushed . | . . . . . . . . . . . . . . . . . . . Highest Temperature 371 | . 231 265 371 . 350 371 102 . . 289 120 35 112 110 300 156 258 308 Average Temperature 73 | . 91 64 98 . 90 205 33 . . 53 67 19 40 36 81 65 71 77 Received Heat Transfer 2267 | . 42 309 168 . 240 356 72 . . 183 . 99 . 129 9 . 18 642 Effects 10 | . . . 3 . 1 1 . . . . . . . . 1 . 4 . Energy Bleed 4 | . . . 1 . 1 . . . . . . . . . 1 . 1 . Interference 4 | . . . 1 . . . . . . . . . . . . . 3 . Damage (minor) 2 | . . . 1 . . 1 . . . . . . . . . . . . Siege Activations . | . . . . . . . . . . . . . . . . . . . Martial Activations . | . . . . . . . . . . . . . . . . . . . Shielding Activations . | . . . . . . . . . . . . . . . . . . . Robots Disrupted . | . . . . . . . . . . . . . . . . . . . Combat Hostiles . | . . . . . . . . . . . . . . . . . . . Robots Corrupted . | . . . . . . . . . . . . . . . . . . . Combat Hostiles . | . . . . . . . . . . . . . . . . . . . Parts Fried 1 | . . . . . . . . . . . . . . . . . 1 . Impact Corruptions . | . . . . . . . . . . . . . . . . . . . Robots Melted 5 | . . . . . 4 . . . . 1 . . . . . . . . Combat Hostiles 5 | . . . . . 4 . . . . 1 . . . . . . . . Parts Melted 36 | . . 4 3 . 12 . . . . 7 7 . . 1 2 . . . Heat Transferred 13363 | . . 1321 1776 . 2981 111 666 . 111 4008 1131 592 333 333 . . . . Parts Sabotaged . | . . . . . . . . . . . . . . . . . . . Parts Stolen . | . . . . . . . . . . . . . . . . . . . Parts Stripped . | . . . . . . . . . . . . . . . . . . . Power Chain Reactions 1 | . . 1 . . . . . . . . . . . . . . . . Alert | -11 -10 -10 -9 -9 -6 -6 -6 -6 -5 -5 -5 -5 -5 -4 -4 -4 -4 -4 ------- Run | Yrd Mat Sub Rec Scr Fac Low Low Zio Pro Fac Upp Upp Zhi Pro Fac Was Fac Ext Maximum Alert Level 3 | . . . 2 . 1 . . . . 3 . . . . 1 . 2 2 Low Security (%) 56 | 100 100 . 36 . 91 . . . . 23 . . . . 91 100 4 . Level 1 16 | . . . 47 . 8 . . . . 6 . . . . 8 . 7 57 Level 2 18 | . . . 15 . . . . . . 24 . . . . . . 87 42 Level 3 8 | . . . . . . . . . . 45 . . . . . . . . Level 4 . | . . . . . . . . . . . . . . . . . . . Level 5 . | . . . . . . . . . . . . . . . . . . . High Security . | . . . . . . . . . . . . . . . . . . . Max Security . | . . . . . . . . . . . . . . . . . . . Peak Influence 868 | 5 178 . 436 . 208 . . . . 868 . . . . 235 80 606 465 Initial 285 | . . . 160 . . . . . . . . . . . 25 80 . 285 Average 255 | 1 67 . 269 . 74 . . . . 551 . . . . 89 22 486 373 Influence Increases 7253 | 15 505 699 505 . 734 15 100 . . 1418 90 200 15 310 515 . 1355 777 Destroy 0b10 Robot/C 3560 | . 300 580 160 . 380 . 100 . . 660 80 180 . 260 180 . 360 320 Destroy 0b10 Robot/NC 305 | 15 20 . 45 . 40 . . . . 55 . . 15 . 45 . 55 15 Destroy Leader 588 | . 74 20 . . 98 . . . . 138 10 20 . 50 72 . 74 32 Allied During Kill 912 | . . 9 . . 98 . . . . 147 . . . . 180 . 362 116 Successful Hack 31 | . . . . . . . . . . . . . . . 5 . 5 21 Disable Machine 225 | . . . . . 60 . . . . 75 . . . . 15 . 30 45 Anti-Garrison Action 400 | . . . . . . . . . . 200 . . . . . . 200 . Destroy Structure 257 | . 36 . 12 . 43 . . . . 68 . . . . 18 . 32 48 Partial Spotted 120 | . . . . . . . . . . . . . . . . . 75 45 Lose Combat Pursuer 435 | . 75 90 30 . 15 15 . . . 75 . . . . . . . 135 Miscellaneous 420 | . . . 258 . . . . . . . . . . . . . 162 . Influence Decreases 6923 | 15 466 403 713 127 536 194 119 . . 589 517 386 231 270 326 229 772 1030 Entered New Map 1462 | . . 19 175 127 . 74 4 . . . 307 78 216 . 15 149 . 298 Time Decay 3965 | 15 456 310 518 . 426 120 115 . . 389 170 278 15 220 249 80 342 262 Lost Part 626 | . 10 74 20 . 50 . . . . 120 40 30 . 50 12 . 30 190 Lost Ally 870 | . . . . . 60 . . . . 80 . . . . 50 . 400 280 Squads Dispatched 32 | . 4 . 1 . 4 . . . . 11 . . . . 2 . 6 4 Investigation 11 | . 1 . 1 . . . . . . 3 . . . . . . 3 3 Extermination 10 | . . . . . 3 . . . . 3 . . . . 2 . 2 . Reinforcement 10 | . 3 . . . 1 . . . . 5 . . . . . . . 1 Assault 1 | . . . . . . . . . . . . . . . . . 1 . Garrison . | . . . . . . . . . . . . . . . . . . . Intercept . | . . . . . . . . . . . . . . . . . . . Searches Triggered . | . . . . . . . . . . . . . . . . . . . Construction Impeded 2 | . . . . . . . . . . 2 . . . . . . . . Haulers Reinforced . | . . . . . . . . . . . . . . . . . . . Active Scanning Responses . | . . . . . . . . . . . . . . . . . . . Cargo Convoy Interrupts . | . . . . . . . . . . . . . . . . . . . Stealth | -11 -10 -10 -9 -9 -6 -6 -6 -6 -5 -5 -5 -5 -5 -4 -4 -4 -4 -4 --------- Run | Yrd Mat Sub Rec Scr Fac Low Low Zio Pro Fac Upp Upp Zhi Pro Fac Was Fac Ext Distress Signals 11 | . 2 . . . 1 . . . . 5 . . . . 2 . 1 . Communications Jammed . | . . . . . . . . . . . . . . . . . . . Distress Signals . | . . . . . . . . . . . . . . . . . . . Times Spotted 290 | . 30 56 10 . 32 1 5 . . 52 4 21 . 12 9 . 22 36 Peak Tracking Total 13 | . 4 6 3 . 5 1 3 . . 7 3 13 . 4 2 . 4 12 Tactical Retreats 16 | . 3 3 1 . 1 1 . . . 2 . . . . . . . 5 Traps | -11 -10 -10 -9 -9 -6 -6 -6 -6 -5 -5 -5 -5 -5 -4 -4 -4 -4 -4 ------- Run | Yrd Mat Sub Rec Scr Fac Low Low Zio Pro Fac Upp Upp Zhi Pro Fac Was Fac Ext Traps Triggered 19 | . 3 2 . . 2 . . . . 1 . . . . 1 . 6 4 Indirectly . | . . . . . . . . . . . . . . . . . . . Trap Hack Attempts . | . . . . . . . . . . . . . . . . . . . Triggered . | . . . . . . . . . . . . . . . . . . . Disarmed . | . . . . . . . . . . . . . . . . . . . Reprogrammed . | . . . . . . . . . . . . . . . . . . . Reused . | . . . . . . . . . . . . . . . . . . . Traps Extracted . | . . . . . . . . . . . . . . . . . . . Installed 1 | . . . . . . 1 . . . . . . . . . . . . Triggered . | . . . . . . . . . . . . . . . . . . . Machines | -11 -10 -10 -9 -9 -6 -6 -6 -6 -5 -5 -5 -5 -5 -4 -4 -4 -4 -4 ---------- Run | Yrd Mat Sub Rec Scr Fac Low Low Zio Pro Fac Upp Upp Zhi Pro Fac Was Fac Ext Machines Disabled 20 | . . 5 . . 4 . . . . 5 . . . . 1 . 2 3 Max in Single Turn 3 | . . 3 . . 2 . . . . 1 . . . . . . 1 1 Garrison Access 2 | . . . . . . . . . . 1 . . . . . . 1 . Machines Repaired . | . . . . . . . . . . . . . . . . . . . Machines Dismantled . | . . . . . . . . . . . . . . . . . . . Machines Sabotaged . | . . . . . . . . . . . . . . . . . . . Overloaded Fab Kills . | . . . . . . . . . . . . . . . . . . . Hacking | -11 -10 -10 -9 -9 -6 -6 -6 -6 -5 -5 -5 -5 -5 -4 -4 -4 -4 -4 --------- Run | Yrd Mat Sub Rec Scr Fac Low Low Zio Pro Fac Upp Upp Zhi Pro Fac Was Fac Ext Machines Accessed 31 | . 1 4 1 . 3 . 1 . . 3 . . 5 . 2 . 4 7 Terminals 14 | . 1 . 1 . 3 . . . . . . . . . 1 . 1 7 Fabricators 3 | . . . . . . . . . . . . . . . 1 . 2 . Repair Stations . | . . . . . . . . . . . . . . . . . . . Recycling Units . | . . . . . . . . . . . . . . . . . . . Scanalyzers 2 | . . . . . . . . . . 2 . . . . . . . . Garrison Access 2 | . . . . . . . . . . 1 . . . . . . 1 . Total Hacks 88 | . 3 15 3 . 4 . 1 . . 10 . . 18 . 4 . 7 23 Successful 55 | . 2 15 1 . 1 . 1 . . 7 . . 18 . 2 . 4 4 Failed 32 | . 1 . 2 . 3 . . . . 2 . . . . 2 . 3 19 Catastrophic 7 | . . . . . 1 . . . . . . . . . 1 . . 5 Database Lockouts 1 | . . . . . . . . . . 1 . . . . . . . . Manual 61 | . 4 . 3 . 4 . . . . 12 . . . . 12 . 23 3 Terminals 36 | . 3 . 3 . 4 . . . . . . . . . 1 . 2 23 Fabricators 7 | . . . . . . . . . . . . . . . 3 . 4 . Repair Stations . | . . . . . . . . . . . . . . . . . . . Recycling Units . | . . . . . . . . . . . . . . . . . . . Scanalyzers 7 | . . . . . . . . . . 7 . . . . . . . . Garrison Access 4 | . . . . . . . . . . 3 . . . . . . 1 . Terminal Hacks 41 | . . 15 . . 1 . 1 . . . . . 18 . 1 . 1 4 Record 18 | . . 12 . . . . . . . . . . 6 . . . . . Part Schematic 4 | . . . . . . . . . . . . . 4 . . . . . Robot Analysis 4 | . . . . . . . . . . . . . 4 . . . . . Prototype ID Bank 4 | . . . . . . . . . . . . . 4 . . . . . Open Door 6 | . . 1 . . . . 1 . . . . . . . . . . 4 Open DSF 2 | . . . . . . . . . . . . . . . 1 . 1 . Branch Access Points 1 | . . . . . 1 . . . . . . . . . . . . . Proto ID Catalog 1 | . . 1 . . . . . . . . . . . . . . . . Release Object 1 | . . 1 . . . . . . . . . . . . . . . . Fabricator Hacks 2 | . . . . . . . . . . . . . . . 1 . 1 . Load Schematic 2 | . . . . . . . . . . . . . . . 1 . 1 . Repair Station Hacks . | . . . . . . . . . . . . . . . . . . . Recycling Unit Hacks . | . . . . . . . . . . . . . . . . . . . Scanalyzer 6 | . . . . . . . . . . 6 . . . . . . . . Insert Component 2 | . . . . . . . . . . 2 . . . . . . . . Analyze 3 | . . . . . . . . . . 3 . . . . . . . . Retrieve Study 1 | . . . . . . . . . . 1 . . . . . . . . Garrison Access Hacks . | . . . . . . . . . . . . . . . . . . . Unauthorized Hacks 6 | . 2 . 1 . . . . . . 1 . . . . . . 2 . Terminals 3 | . 2 . 1 . . . . . . . . . . . . . . . Operators 1 | . 1 . . . . . . . . . . . . . . . . . Skim 1 | . 1 . . . . . . . . . . . . . . . . . Sabotage 1 | . . . 1 . . . . . . . . . . . . . . . Fabricators 1 | . . . . . . . . . . . . . . . . . 1 . Recompile 1 | . . . . . . . . . . . . . . . . . 1 . Repair Stations . | . . . . . . . . . . . . . . . . . . . Recycling Units . | . . . . . . . . . . . . . . . . . . . Scanalyzers . | . . . . . . . . . . . . . . . . . . . Garrison Access 2 | . . . . . . . . . . 1 . . . . . . 1 . Jam 2 | . . . . . . . . . . 1 . . . . . . 1 . Data Cores Recovered 2 | . . . . . 1 . . . . . . . . . . . 1 . Used . | . . . . . . . . . . . . . . . . . . . Hacking Detections 13 | . 1 . 1 . 2 . . . . 3 . . . . 1 . 1 4 Full Trace Events 4 | . . . . . . . . . . 1 . . . . . . . 3 Feedback Events . | . . . . . . . . . . . . . . . . . . . Feedback Blocked . | . . . . . . . . . . . . . . . . . . . Robot Schematics Acquired . | . . . . . . . . . . . . . . . . . . . Robots Built . | . . . . . . . . . . . . . . . . . . . Authchips . | . . . . . . . . . . . . . . . . . . . Time . | . . . . . . . . . . . . . . . . . . . Total Robot Build Rating . | . . . . . . . . . . . . . . . . . . . Part Schematics Acquired 33 | . . . . . . . . . . 2 . . 4 . 6 4 10 7 Parts Built . | . . . . . . . . . . . . . . . . . . . Authchips . | . . . . . . . . . . . . . . . . . . . Time . | . . . . . . . . . . . . . . . . . . . Total Part Build Rating . | . . . . . . . . . . . . . . . . . . . Part Studies Acquired 1 | . . . . . . . . . . 1 . . . . . . . . Parts Repaired . | . . . . . . . . . . . . . . . . . . . Time . | . . . . . . . . . . . . . . . . . . . Parts Recycled . | . . . . . . . . . . . . . . . . . . . Recycled Matter . | . . . . . . . . . . . . . . . . . . . Retrieved Matter . | . . . . . . . . . . . . . . . . . . . Retrieved Components . | . . . . . . . . . . . . . . . . . . . Parts Scanalyzed 2 | . . . . . . . . . . 2 . . . . . . . . Part Schematics Acquired 2 | . . . . . . . . . . 2 . . . . . . . . Parts Damaged . | . . . . . . . . . . . . . . . . . . . Bothacking | -11 -10 -10 -9 -9 -6 -6 -6 -6 -5 -5 -5 -5 -5 -4 -4 -4 -4 -4 ------------ Run | Yrd Mat Sub Rec Scr Fac Low Low Zio Pro Fac Upp Upp Zhi Pro Fac Was Fac Ext Used RIF Installer . | . . . . . . . . . . . . . . . . . . . Robots Hacked 1 | . . . . . . . . . . . . . . . 1 . . . Non-combat . | . . . . . . . . . . . . . . . . . . . Combat 1 | . . . . . . . . . . . . . . . 1 . . . Robot Hacks Applied 1 | . . . . . . . . . . . . . . . 1 . . . parse_system 1 | . . . . . . . . . . . . . . . 1 . . . Relay Couplers Released 1 | . . . . . . . . . . . . . . . . . 1 . Machine Destruction 1 | . . . . . . . . . . . . . . . . . 1 . Fabnet Peak Effective % . | . . . . . . . . . . . . . . . . . . . Robots Rewired 2 | . . . . . . . . . . . . . . . . . . 2 Allies Hacked 3 | . . . . . . . . . . 1 . . . . 1 . . 1 Hacks Repelled . | . . . . . . . . . . . . . . . . . . . Allies | -11 -10 -10 -9 -9 -6 -6 -6 -6 -5 -5 -5 -5 -5 -4 -4 -4 -4 -4 -------- Run | Yrd Mat Sub Rec Scr Fac Low Low Zio Pro Fac Upp Upp Zhi Pro Fac Was Fac Ext Total Allies 69 | . . 5 . . 5 . . 4 . 1 . . . . 11 20 9 14 Largest Group 23 | . . 3 . . 5 . . 4 4 4 . . . . 8 20 23 8 Highest-Rated Group 864 | . . 24 . . 145 . . 160 160 160 . . . . 608 709 864 495 Highest-Rated Ally 103 | . . 8 . . 29 . . 40 40 40 . . . . 103 46 103 103 Zionite Dispatches 8 | . . . . . . . . . . 1 . . . . 4 . 3 . Heavy 3 | . . . . . . . . . . . . . . . 2 . 1 . Fire 1 | . . . . . . . . . . . . . . . . . 1 . Demo 1 | . . . . . . . . . . . . . . . . . 1 . Thermal Resupply 1 | . . . . . . . . . . 1 . . . . . . . . Melee Resupply 1 | . . . . . . . . . . . . . . . 1 . . . Hover Resupply 1 | . . . . . . . . . . . . . . . 1 . . . Total Orders 3 | . . . . . . . . . . 1 . . . . 2 . . . DROP 3 | . . . . . . . . . . 1 . . . . 2 . . . Ally Attacks 352 | . . 24 . . 69 . . . . 49 . . . . 27 . 116 67 Total Damage 9345 | . . 169 . . 898 . . . . 2172 . . . . 1894 . 2035 2177 Kills 69 | . . 2 . . 10 . . . . 20 . . . . 10 . 16 11 Allies Corrupted 3 | . . . . . . . . . . . . . . . 2 . 1 . Allies Melted . | . . . . . . . . . . . . . . . . . . . X0-1V1 Amusement Gains 213 | . 15 51 5 . 15 . . . . . . . . 5 . . 55 67 Good Acts 115 | . . 35 11 . 14 3 6 . 2 1 2 1 . 3 17 1 14 5 Bad Acts 98 | . . 38 8 . 2 . . . 3 12 4 4 . 3 1 . 8 15 Intel | -11 -10 -10 -9 -9 -6 -6 -6 -6 -5 -5 -5 -5 -5 -4 -4 -4 -4 -4 ------- Run | Yrd Mat Sub Rec Scr Fac Low Low Zio Pro Fac Upp Upp Zhi Pro Fac Was Fac Ext Active Infowar (turns) 10998 | 70 1461 . . . 1264 243 481 1114 448 1655 352 610 264 612 779 310 770 565 Optics 5787 | . . . . . . . . . . 1525 352 610 264 612 779 310 770 565 IFF 2095 | . . . . . . . . . . . 350 609 249 612 275 . . . Seismic 8331 | 70 1461 . . . 1264 243 481 1114 448 1625 40 . . . 498 308 768 11 Jamming 1 | . . . . . . . . . . . . . . . . . . 1 Robot Analysis Total 4 | . . . . . . . . . . . . . 4 . . . . . Derelict Logs Recovered 11 | . . 2 . . . 1 1 2 2 . 1 2 . . . . . . Drone Launches . | . . . . . . . . . . . . . . . . . . . Drone Recoveries . | . . . . . . . . . . . . . . . . . . . Zionite Intel Received 6 | . . . . . . . . . . 1 . . . . 1 . 4 . Emergency Access 1 | . . . . . . . . . . . . . . . . . 1 . Guard Positions 2 | . . . . . . . . . . 1 . . . . . . 1 . Component Stockpiles 1 | . . . . . . . . . . . . . . . 1 . . . Prototype Stockpiles 1 | . . . . . . . . . . . . . . . . . 1 . Active Terminals 1 | . . . . . . . . . . . . . . . . . 1 . Exploration | -11 -10 -10 -9 -9 -6 -6 -6 -6 -5 -5 -5 -5 -5 -4 -4 -4 -4 -4 ------------- Run | Yrd Mat Sub Rec Scr Fac Low Low Zio Pro Fac Upp Upp Zhi Pro Fac Was Fac Ext Turns Passed 19008 | 179 1476 5432 1436 1009 1269 243 481 1114 448 1655 352 610 264 612 779 310 770 569 Spaces Moved 13184 | 99 756 2485 544 711 872 196 353 838 319 1072 248 437 155 303 1094 291 1620 791 Core 26 | 17 . . . . . . . . . . . . . . . . . 9 Treads 837 | 70 756 11 . . . . . . . . . . . . . . . . Legs 4315 | . . 178 2 . 178 196 353 838 319 1072 248 437 155 303 36 . . . Wheels 4111 | 12 . 2152 542 711 694 . . . . . . . . . . . . . Hover 3751 | . . . . . . . . . . . . . . . 1058 291 1620 782 Flight 144 | . . 144 . . . . . . . . . . . . . . . . Fastest Speed 30 | 50 160 129 175 140 103 120 120 124 124 105 108 105 105 108 30 30 30 38 Average Speed 120 | 132 169 195 199 140 117 120 120 124 124 121 120 126 150 171 47 30 34 46 Slowest Speed 1240 | 160 320 1240 260 140 120 120 124 124 124 192 180 182 180 330 510 30 38 93 Overloaded Moves 34 | . . 34 . . . . . . . . . . . . . . . . Propulsion Burnouts . | . . . . . . . . . . . . . . . . . . . Robots Hopped . | . . . . . . . . . . . . . . . . . . . Potential Cave-ins . | . . . . . . . . . . . . . . . . . . . Cave-ins Triggered . | . . . . . . . . . . . . . . . . . . . Exploration Rate (%) 56 | 6 91 92 59 57 27 42 53 88 47 34 58 79 61 51 20 95 38 68 Regions Visited 18 Branch Regions 12 Pre-discovered Areas 8 | . . 1 . . . . 1 2 . . . 1 3 . . . . . Known Exits Taken 4 | . . . 1 . 1 . . . 1 1 . . . . . . . . Unknown Exits Taken 12 | 1 1 1 . 1 . 1 1 1 . . 1 1 1 1 . . 1 . Scrap Searched 20 | . . 7 . 2 . . 2 3 2 . 3 1 . . . . . . Spaces Dug 19 | . . 5 . . . . . . . 1 . . . . 1 . 12 . Terrain Destroyed 362 | . 34 94 10 . 42 . 8 . . 12 . 87 . 62 1 . 12 . Melee 18 | . . 5 . . . . . . . . . . . . 1 . 12 . Projectile 71 | . . 24 4 . 13 . 8 . . 12 . 8 . 2 . . . . AOE 273 | . 34 65 6 . 29 . . . . . . 79 . 60 . . . . Terrain Rammed . | . . . . . . . . . . . . . . . . . . . Walls Destroyed . | . . . . . . . . . . . . . . . . . . . Machines Disabled . | . . . . . . . . . . . . . . . . . . . Actions | -11 -10 -10 -9 -9 -6 -6 -6 -6 -5 -5 -5 -5 -5 -4 -4 -4 -4 -4 --------- Run | Yrd Mat Sub Rec Scr Fac Low Low Zio Pro Fac Upp Upp Zhi Pro Fac Was Fac Ext Total 15438 | 122 850 2824 839 725 1025 203 388 913 372 1309 270 466 175 358 1338 513 1791 957 Wait 1028 | . 32 48 218 . 26 . 2 64 52 102 1 4 . 19 139 215 70 36 Move 13167 | 98 755 2484 543 710 871 195 352 837 318 1071 247 436 154 302 1094 290 1619 791 Hop . | . . . . . . . . . . . . . . . . . . . Pick Up 165 | 5 5 32 21 9 22 3 9 3 1 16 2 2 2 . 17 2 7 7 Fast Attach 96 | 7 1 14 3 2 7 . 1 2 . 16 2 3 8 1 18 1 7 3 Attach 79 | . 1 14 2 1 16 . . . . 8 6 2 1 3 9 . 4 12 Detach 41 | . 1 7 3 3 2 . . . . 2 . 3 1 1 8 . 2 8 Swap 83 | 2 2 23 2 . 16 . 2 2 . 13 . . . 2 12 1 3 3 Drop 158 | . 2 28 15 . 21 3 11 5 1 24 . . 4 2 26 3 7 6 Fire 436 | 10 51 129 32 . 43 1 11 . . 57 12 16 5 28 2 . 1 38 Melee 112 | . . 45 . . . . . . . . . . . . 11 1 45 10 Ram 5 | . . . . . . . . . . . . . . . . . . 5 Kick 2 | . . . . . . . . . . . . . . . 2 . . . Crush . | . . . . . . . . . . . . . . . . . . . Escape Stasis 64 | . . . . . . . . . . . . . . . . . 26 38 Rewire . | . . . . . . . . . . . . . . . . . . . Trap 1 | . . . . . . 1 . . . . . . . . . . . . Miscellaneous 1 | . . . . . 1 . . . . . . . . . . . . . Route ------- -11/Scrapyard -10/Materials (discovered 5 exits: [*Mat x3] / [*Min] / *Sub) -10/Subcaves (discovered 2 exits: *Mat / *Rec) -9/Recycling (discovered 2 exits: Fac / *Scr) -9/Scraptown -6/Factory (discovered 4 exits: *Fac x2 / *Low x2) -6/Lower Caves -6/Lower Caves (discovered 2 exits: Fac / [*Zio]) -6/Zion -5/Proximity Caves -5/Factory (discovered 2 exits: *Upp x2) -5/Upper Caves -5/Upper Caves (discovered 2 exits: *Fac / *Zhi) -5/Zhirov -4/Proximity Caves -4/Factory (discovered 2 exits: *Res x2) -4/Waste -4/Factory (discovered 3 exits: *Res x2 / *Ext) -4/Extension History --------- Turn | Location | Event 5 | -11/Scrapyard | Discovered new exit (range 16) 180 | -11/Scrapyard | Entered Materials 314 | -10/Materials | Build established: Mutant 498 | -10/Materials | Discovered new exit (range 12) 609 | -10/Materials | Discovered new exit (range 11) 842 | -10/Materials | Discovered new exit (range 16) 1123 | -10/Materials | Discovered new exit (range 9) 1628 | -10/Materials | Discovered new exit (range 6) 1641 | -10/Materials | Prayed at D.C.S.S. Altar Unit 1656 | -10/Materials | Entered Subcaves 1788 | -10/Subcaves | Core integrity fell below 50% 1836 | -10/Subcaves | A swath of the cavern ceiling suddenly collapsed 1952 | -10/Subcaves | Shifting Twisted Machinery released Battle Cannon 1986 | -10/Subcaves | Core integrity permanently improved by X0-1V1 (+200) 2001 | -10/Subcaves | Core integrity restored by X0-1V1 (+94) 2078 | -10/Subcaves | X0-1V1 sent hostile S-10 Pest (x4) 2108 | -10/Subcaves | System corruption reached 10% 2192 | -10/Subcaves | X0-1V1 sent allied G-34 Mercenary (x3) 2319 | -10/Subcaves | Ambushed by Subdwellers from Twisted Machinery 2375 | -10/Subcaves | Identified exit to Materials 2375 | -10/Subcaves | X0-1V1 revealed exit location to -8/Materials 2667 | -10/Subcaves | X0-1V1 activates XOMVISION 2687 | -10/Subcaves | Discovered exit to Materials (range 9) 2773 | -10/Subcaves | A swath of the cavern ceiling suddenly collapsed 3176 | -10/Subcaves | Visited Clippyterm 3181 | -10/Subcaves | Learned location of Extension (-4) 3212 | -10/Subcaves | Learned Materials garrison access intel 3213 | -10/Subcaves | Shifting Twisted Machinery released Sub. Power Source 3223 | -10/Subcaves | Shifting Twisted Machinery released Battle Rifle 3598 | -10/Subcaves | Disturbed a concealed Subdweller 3865 | -10/Subcaves | Visited 4L-MR0's lab 3881 | -10/Subcaves | Found Cargo Legs 3886 | -10/Subcaves | Found Prototype Device 4329 | -10/Subcaves | Core integrity restored by X0-1V1 (+99) 4480 | -10/Subcaves | Discovered new exit (range 12) 5000 | -10/Subcaves | Ambushed by Subdweller buried in earth 5063 | -10/Subcaves | Lost 4 parts (1p1n2w) 5460 | -10/Subcaves | Shifting Twisted Machinery released Piercing Trap 5516 | -10/Subcaves | Identified Sfc. Transmogrifier 5544 | -10/Subcaves | Found SUBCON Basin 5960 | -10/Subcaves | X0-1V1 sent hostile S-10 Pest (x3) 6032 | -10/Subcaves | X0-1V1 tapped a No Entrance sign 6129 | -10/Subcaves | X0-1V1 activates XOMVISION 6193 | -10/Subcaves | Core integrity restored by X0-1V1 (+85) 6357 | -10/Subcaves | X0-1V1 sent hostile S-10 Pest (x4) 6606 | -10/Subcaves | Core integrity restored by X0-1V1 (+94) 6682 | -10/Subcaves | X0-1V1 sent hostile S-10 Pest (x4) 6706 | -10/Subcaves | X0-1V1 whisked you away to safety 6708 | -10/Subcaves | Attached Cargo Legs, gained temporary slots: Utility x2 6786 | -10/Subcaves | X0-1V1 sent hostile S-10 Pest (x3) 6789 | -10/Subcaves | X0-1V1 sent allied S-10 Pest (x2) 6979 | -10/Subcaves | X0-1V1 sent you into danger 7053 | -10/Subcaves | System corruption reached 30% 7088 | -10/Subcaves | Entered Recycling 7093 | -9/Recycling | Weapon slot count permanently improved by X0-1V1 (+1) 7095 | -9/Recycling | X0-1V1 added 0b10 threat records associated with you (major) 7114 | -9/Recycling | X0-1V1 vaporized surrounding terrain (radius 15) 7183 | -9/Recycling | X0-1V1 sent hostile G-34 Mercenary (x3) 7394 | -9/Recycling | X0-1V1 sent hostile G-34 Mercenary (x3) 7422 | -9/Recycling | Build established: Gunner 7440 | -9/Recycling | Core integrity restored by X0-1V1 (+72) 7442 | -9/Recycling | Identified exit to Scraptown 7442 | -9/Recycling | X0-1V1 revealed exit location to -9/Scraptown 7496 | -9/Recycling | Scanned before Scraplab entrance 7524 | -9/Recycling | Entered Scraplab 7800 | -9/Recycling | Build established: Mutant 8071 | -9/Recycling | Identified exit to Factory 8071 | -9/Recycling | X0-1V1 revealed exit location to -7/Factory 8524 | -9/Recycling | Entered Scraptown 8603 | -9/Scraptown | Build established: Gunner 8698 | -9/Scraptown | Visited The Evicted 8750 | -9/Scraptown | Visited IN-MT5's Study 8800 | -9/Scraptown | Visited Red Mages 8841 | -9/Scraptown | Visited SPCMW 8862 | -9/Scraptown | Visited Assassins FH 8875 | -9/Scraptown | Visited Comm Corps 8932 | -9/Scraptown | Visited Awakened 9352 | -9/Scraptown | Build established: Mutant 9462 | -9/Scraptown | Discovered new exit (range 13) 9533 | -9/Scraptown | Entered Factory 9533 | -6/Factory | Evolved 8 slots: Propulsion x3, Utility x5 9590 | -6/Factory | Ranged accuracy permanently improved by X0-1V1 (+5%; -50 max core) 9658 | -6/Factory | Lost 4 parts (1p1n1u1w) 9811 | -6/Factory | X0-1V1 sent you to a vault 9913 | -6/Factory | Build established: Scavenger-Gunner 9996 | -6/Factory | Identified exit to Lower Caves 10007 | -6/Factory | Discovered new exit (range 8) 10016 | -6/Factory | X0-1V1 activates XOMVISION 10076 | -6/Factory | Spotted B-75 Beast 10398 | -6/Factory | X0-1V1 activates XOMVISION 10439 | -6/Factory | Discovered new exit (range 15) 10669 | -6/Factory | Lost 3 allies 10802 | -6/Factory | Entered Lower Caves 10863 | -6/Lower Caves | Spotted B-75 Beast 10866 | -6/Lower Caves | X0-1V1 activates XOMVISION 10977 | -6/Lower Caves | Learned Factory interactive machine intel 11028 | -6/Lower Caves | Discovered new exit (range 18) 11045 | -6/Lower Caves | Entered another Lower Caves area 11300 | -6/Lower Caves | Identified exit to Factory 11300 | -6/Lower Caves | X0-1V1 revealed exit location to -5/Factory 11349 | -6/Lower Caves | Attracted the attention of an 0b10 checkpoint 11511 | -6/Lower Caves | Encountered a Warlord checkpoint 11515 | -6/Lower Caves | Discovered new exit (range 10) 11526 | -6/Lower Caves | Entered Zion 11616 | -6/Zion | Discovered new exit (range 12) 11737 | -6/Zion | Acquired unknown access codes intercepted by a Zionite 11960 | -6/Zion | Learned location of Warlord (-4) 12258 | -6/Zion | Found Prototype Special Weapon 12258 | -6/Zion | Identified RU-N14's Throwing Claymores 12308 | -6/Zion | Met Imprinter 12329 | -6/Zion | Imprinted 12331 | -6/Zion | Declared Zion's savior 12400 | -6/Zion | Found RU-N14's Throwing Claymores 12640 | -6/Zion | Entered Proximity Caves 12640 | -5/Proximity Caves | Accompanied by 4 allies 12920 | -5/Proximity Caves | Sensors blinded by X0-1V1 12973 | -5/Proximity Caves | Learned Factory terminal intel 13026 | -5/Proximity Caves | Discovered exit to Factory (range 7) 13068 | -5/Proximity Caves | Received a Behemoth hack from an annoying Tinkerer 13088 | -5/Proximity Caves | Entered Factory 13088 | -5/Factory | Accompanied by 4 allies 13088 | -5/Factory | Evolved 2 slots: Propulsion x1, Utility x1 13089 | -5/Factory | Identified exit to Upper Caves 13090 | -5/Factory | Loaded intel: 54 interactive machine locations 13091 | -5/Factory | Loaded intel: 26 terminal locations 13166 | -5/Factory | Central database locked down 13378 | -5/Factory | X0-1V1 redirected Transport squads to designated parking area 13530 | -5/Factory | Retrieved Zion intel report: Guard Positions 13531 | -5/Factory | Zion Thermal Resupply teleported in 13835 | -5/Factory | Build established: Scavenger-Skirmisher 14052 | -5/Factory | X0-1V1 announced a LAN party 14178 | -5/Factory | Build established: Scavenger-Tank 14292 | -5/Factory | X0-1V1 enhanced Transport squad support 14345 | -5/Factory | Terminal network hard line cut 14715 | -5/Factory | Discovered exit to Upper Caves (range 18) 14743 | -5/Factory | Entered Upper Caves 14752 | -5/Upper Caves | Lost 3 parts (1n2u) 14775 | -5/Upper Caves | X0-1V1 sent hostile P-70 Sage (x3) 14781 | -5/Upper Caves | X0-1V1 vaporized surrounding terrain (radius 21) 14785 | -5/Upper Caves | System corruption reached 10% 14840 | -5/Upper Caves | Lost 3 parts (1n1u1w) 14846 | -5/Upper Caves | Sensors blinded by X0-1V1 15041 | -5/Upper Caves | Learned Factory interactive machine intel 15050 | -5/Upper Caves | Discovered new exit (range 20) 15095 | -5/Upper Caves | Entered another Upper Caves area 15108 | -5/Upper Caves | Discovered new exit (range 3) 15128 | -5/Upper Caves | Build established: Scavenger-Skirmisher 15235 | -5/Upper Caves | X0-1V1 mutated your Utility slot to Power slot 15661 | -5/Upper Caves | Learned Factory terminal intel 15680 | -5/Upper Caves | Discovered new exit (range 18) 15691 | -5/Upper Caves | X0-1V1 sent you into danger 15692 | -5/Upper Caves | Attracted the attention of an 0b10 base 15705 | -5/Upper Caves | Entered Zhirov 15705 | -5/Zhirov | Discovered new exit (range 3) 15724 | -5/Zhirov | Met Zhirov 15743 | -5/Zhirov | Learned location of Quarantine (-2) 15743 | -5/Zhirov | Learned location of Testing (-3) 15743 | -5/Zhirov | Learned location of Command (-1) 15754 | -5/Zhirov | Zhirov requested help retrieving the SGEMP Prototype 15773 | -5/Zhirov | Found Alien Artifact 15796 | -5/Zhirov | Found Alien Artifact 15796 | -5/Zhirov | Identified Integrated Reactor 15796 | -5/Zhirov | Installed Integrated Reactor, increased core energy generation (+10) 15969 | -5/Zhirov | Entered Proximity Caves 16023 | -4/Proximity Caves | Spotted B-86 Titan 16058 | -4/Proximity Caves | Build established: Skirmisher 16445 | -4/Proximity Caves | Build established: Mutant 16511 | -4/Proximity Caves | Discovered new exit (range 18) 16516 | -4/Proximity Caves | Lost 3 parts (1n1u1w) 16570 | -4/Proximity Caves | Lost 3 parts (2n1u) 16581 | -4/Proximity Caves | Entered Factory 16581 | -4/Factory | Evolved 2 slots: Propulsion x1, Utility x1 16582 | -4/Factory | Loaded intel: 56 interactive machine locations 16583 | -4/Factory | Loaded intel: 28 terminal locations 16606 | -4/Factory | Zion Hover Resupply teleported in 16656 | -4/Factory | System corruption reached 10% 16803 | -4/Factory | Zion Heavy squad teleported in 16853 | -4/Factory | X0-1V1 sent you to a vault 16902 | -4/Factory | Found Zio. Weapon Casing 16939 | -4/Factory | X0-1V1 activates XOMVISION 16940 | -4/Factory | X0-1V1 foreshadows a heat wave 16942 | -4/Factory | P-70 Sage assimilated allied Beamer 7a 16997 | -4/Factory | Tech Extrapolator generated special schematic: Energy Deflector 17016 | -4/Factory | Ambient heat levels rising (+10) 17056 | -4/Factory | Build established: Commander-Mutant 17073 | -4/Factory | Tech Extrapolator generated special schematic: Deep Structural Scanner 17098 | -4/Factory | Ambient heat levels rising (+10) 17170 | -4/Factory | Ambient heat levels falling (-10) 17173 | -4/Factory | Retrieved Zion intel report: Component Stockpiles 17174 | -4/Factory | Zion Heavy squad teleported in 17201 | -4/Factory | Zion Melee Resupply teleported in 17225 | -4/Factory | Ambient heat levels falling (-10) 17253 | -4/Factory | Tech Extrapolator generated special schematic: Hyp. Alpha Cannon 17297 | -4/Factory | Lost 3 allies 17343 | -4/Factory | Identified exit to Research 17343 | -4/Factory | X0-1V1 revealed exit location to -3/Research 17351 | -4/Factory | Discovered exit to Research (range 19) 17360 | -4/Factory | Sucked down chute 17360 | -4/Factory | Entered Waste 17361 | -4/Waste | Joined by Warlord forces that had cleared the area 17525 | -4/Waste | Identified exit to Factory 17525 | -4/Waste | X0-1V1 revealed exit location to -4/Factory 17591 | -4/Waste | Build established: Sprinter 17670 | -4/Waste | Entered Factory 17670 | -4/Factory | Accompanied by 20 allies 17704 | -4/Factory | X0-1V1 downgraded hostiles (x3) 17726 | -4/Factory | X0-1V1 released a cloud of subatomizers 17729 | -4/Factory | Zion Fire squad teleported in 17865 | -4/Factory | X0-1V1 redirected Transport squads to designated parking area 17877 | -4/Factory | Discovered new exit (range 21) 17953 | -4/Factory | Lost 5 allies 18003 | -4/Factory | Retrieved Zion intel report: Active Terminals 18069 | -4/Factory | Build established: Mutant 18077 | -4/Factory | Retrieved Zion intel report: Guard Positions 18108 | -4/Factory | X0-1V1 mutated your Weapon slot to Utility slot 18136 | -4/Factory | Discovered exit to Research (range 18) 18138 | -4/Factory | Discovered exit to Research (range 15) 18140 | -4/Factory | Retrieved Zion intel report: Prototype Stockpiles 18141 | -4/Factory | Spotted B-86 Titan 18189 | -4/Factory | X0-1V1 sent you to a vault 18198 | -4/Factory | Lost 3 allies 18227 | -4/Factory | Retrieved Zion intel report: Emergency Access 18228 | -4/Factory | Zion Demo squad teleported in 18239 | -4/Factory | X0-1V1 added 0b10 threat records associated with you (minor) 18248 | -4/Factory | X0-1V1 vaporized surrounding terrain (radius 18) 18320 | -4/Factory | Zion Heavy squad teleported in 18420 | -4/Factory | First assault squad dispatched 18440 | -4/Factory | Entered Extension 18440 | -4/Extension | Accompanied by 5 allies 18449 | -4/Extension | X0-1V1 mutated your Propulsion slot to Weapon slot 18468 | -4/Extension | Rescued a captive Derelict 18469 | -4/Extension | Rescued a captive Derelict 18507 | -4/Extension | X0-1V1 rewrote M5-J61(l) IFF filter 18556 | -4/Extension | Rescued a captive Derelict 18556 | -4/Extension | Rescued a captive Derelict 18560 | -4/Extension | Spotted B-86 Titan 18560 | -4/Extension | Spotted B-86 Titan 18560 | -4/Extension | X0-1V1 sent you into danger 18665 | -4/Extension | Rescued a captive Derelict 18667 | -4/Extension | Rescued a captive Derelict 18668 | -4/Extension | Rescued a captive Derelict 18681 | -4/Extension | Rescued a captive Derelict 18683 | -4/Extension | Rescued a captive Derelict 18739 | -4/Extension | Build established: Hacker-Mutant 18795 | -4/Extension | Lost 5 allies 18798 | -4/Extension | Lost 3 parts (1p1n1u) 18884 | -4/Extension | Rescued a captive Derelict 18900 | -4/Extension | Zion dispatch access revoked 18918 | -4/Extension | X0-1V1 sent hostile X-77 Beamer (x3) 18932 | -4/Extension | Rescued a captive Derelict 18945 | -4/Extension | Core integrity fell below 50% 18967 | -4/Extension | X0-1V1 mutated your Utility slot to Weapon slot 18971 | -4/Extension | Core integrity fell below 20% 18981 | -4/Extension | Lost 12 parts (1p6n4u1w) 19009 | -4/Extension | Core destroyed Last Messages --------------- Influences: Imp. Focal Shield, Adv. Focal Shield. X0-1V1's Piety Tracker suddenly appears amidst shimmering waves of color. 18999_ Gyrokinetic Inverter destroyed. 18999_ Penetrated by Slug. 19002_ Slug penetrates Wall. 19004_ Slammed into H-77 Assassin. 19004_ Slug penetrates Wall. 19005_ Slammed into H-77 Assassin. 19005_ Destabilizing: System interference. 19005_ Enh. Optical Array temporarily disabled. 19005_ Adv. Melee Analysis Suite temporarily disabled. 19006_ Slammed into H-77 Assassin. 19006_ Destabilizing: System corrupted (+1). 19007_ Slammed into H-77 Assassin. 19007_ Imp. Transmission Jammer destroyed. 19007_ System corrupted by crushing effect (+4). 19008_ Penetrated by Slug. 19008_ Slammed into H-77 Assassin. 19009_ Destabilizing: Core damaged (-52). 19009_ X0-1V1 howls with laughter! Map ----- +----------------------------------------------------+ | | | | | | | | | | | | | | | | | | | | | | | | | | | | | | | | | ???????????????????????????????????????????? | | ???????????###?????????????????????????????? | | ???????????#""?????????????????????????????? | | ??????????##T"######????###????????????????? | | ??????????? ????? ????????????????? | | ???????????# #?????# #????????????????? | | ????######## #?????#h#????????????????? | | ????# ?# #?????#h#????????????????? | | ??### = */?# #?????#h#????????????????? | | ??+ # ??+ #?????#@#????????????????? | | ??# # ??# #?????#%#????????????????? | | ??# # ???# #?????#%#????????????????? | | ??# # ???+ #?????#%#????????????????? | | ??# ##+#???# #?????# #????????????????? | | ### ##### =%####### #????????????????? | | ! *! #????????????????? | | ###########################????????????????? | | ???????????????????????????????????????????? | | ???????????????????????????????????????????? | | ???????????????????????????????????????????? | | ???????????????????????????????????????????? | | ???????????????????????????????????????????? | | ???????????????????????????????????????????? | | ???????????????????????????????????????????? | | ???????????????????????????????????????????? | | ???????????????????????????????????????????? | | ???????????????????????????????????????????? | | ???????????????????????????????????????????? | | ???????????????????????????????????????????? | | ???????????????????????????????????????????? | | ???????????????????????????????????????????? | | ???????????????????????????????????????????? | | ???????????????????????????????????????????? | | ???????????????????????????????????????????? | +----------------------------------------------------+ Best States ------------- Heat Dissipation 189 Energy Generation 47 Energy Capacity 1900 Matter Stores 1000 Matter Capacity 1000 Sight Range 28 Terrain Scan Density 10 Armor Coverage 225 Resistance: KI 24 Resistance: TH 10 Power Shielding 66 Propulsion Shielding 90 Weapon Shielding 100 Melee Speed Boost 30 Evasion (%) 70 Melee Accuracy 8 Recoil Reduction 2 Particle Charging 30 Offensive Hacking 14 Defensive Hacking 22 Authchip Count 1 Item Schematics ----------------- Imp. Transmission Jammer | -5/Factory | Scanalyzed CPS Tube | -5/Factory | Scanalyzed Assault Drone Bay | -5/Zhirov | Free Exp. Heat Sink | -5/Zhirov | Free Exp. Optical Array | -5/Zhirov | Free Imp. Arc Thrower | -5/Zhirov | Free Mak. Coolant Network | -4/Factory | Extrapolated Energy Deflector | -4/Factory | Extrapolated Deep Structural Scanner | -4/Factory | Extrapolated Mak. Terrain Scan Processor | -4/Factory | Extrapolated Hyp. Alpha Cannon | -4/Factory | Extrapolated Phasing Sabre | -4/Factory | Extrapolated Mak. Medium Armor Plating | -4/Waste | Extrapolated Mak. Ablative Armor | -4/Waste | Extrapolated Mak. Laser | -4/Waste | Extrapolated Mak. Spear | -4/Waste | Extrapolated Mak. Power Source | -4/Factory | Extrapolated Mak. Hacking Suite | -4/Factory | Extrapolated Lgt. Humpback | -4/Factory | Extrapolated Mak. Light Armor Plating | -4/Factory | Extrapolated Mak. Thermal Plating | -4/Factory | Extrapolated Mak. System Shield | -4/Factory | Extrapolated 0b10 Decoder Chip [Generic] | -4/Factory | Extrapolated 0b10 Decoder Chip [Scout] | -4/Factory | Extrapolated Mak. Sensor Array | -4/Factory | Extrapolated 0b10 Decoder Chip [Skirmisher] | -4/Factory | Extrapolated Mak. Transmission Jammer | -4/Extension | Extrapolated Mak. Heavy Armor Plating | -4/Extension | Extrapolated Mak. Targeting Computer | -4/Extension | Extrapolated Mapping Drone Bay | -4/Extension | Extrapolated Beamcaster | -4/Extension | Extrapolated Plasma Flamer | -4/Extension | Extrapolated Mak. Kinetic Plating | -4/Extension | Extrapolated Robot Schematics ------------------ None Fabricated ------------ Nothing Repaired ---------- Nothing Studied --------- Carbon-fiber Leg | -5/Factory | Hacked Alien Tech Used ----------------- Integrated Reactor Achievements -------------- Inventory Pressure Challenges ------------ None Game ------ Seed HeavyExpertBox Manual? 0 Play Time 02:53:39 Cumulative 276.0 hours Start 2026.07.12 @ 17:47:09 End 2026.07.12 @ 21:05:22 Sessions 1 Manual Loads 0 Difficulty Rogue Special Mode None Game No. 131 Rogue 131 Adventurer 0 Explorer 0 Win Type - Total 17 Types 13/1/1/1/0/0/0/0/0/1 Lore% 77 Gallery% 74 Achievement% 72 Wizard Run 0 Options --------- Layout 0 ASCII 0 Keyboard 1 Movement Arrows Keybinds 0 Fullscreen 2 Font 18/SmallcapsGlow Map View 76x50 Zoom Use 0% Tactical HUD 1 Map Filters NONE Filters NONE Steam 1 RUN: d2201f17-040b-49c1-907e-bd812ecca3fc